bitfinex/quotes_SOLUSD_20241115
["timestamp","ask_amount","ask_price","bid_price","bid_amount"]
[1731632759355,23.55296497,210.86,210.72,39.99106497]
[1731632759356,23.55296497,210.85,210.77,23.55296497]
[1731632759770,23.55296497,210.87,210.78,23.55296497]
[1731632759974,23.55296497,210.88,210.8,23.55296497]
[1731632760167,23.55296497,210.88,210.81,0.12549]
[1731632760383,23.55296497,210.91,210.83,23.55296497]
[1731632760685,6.4813,210.93,210.86,23.55296497]
[1731632760686,30.03426497,210.93,210.86,23.55296497]
[1731632761093,23.55296497,210.91,210.84,23.55296497]
[1731632761297,6.4813,210.93,210.8,23.55296497]
[1731632761298,23.55296497,210.87,210.8,23.55296497]
[1731632761500,23.55296497,210.84,210.77,23.55296497]
[1731632761790,0.2,210.89,210.72,16.3381]
[1731632762096,6.3364,210.82,210.71,23.55296497]
[1731632762472,23.55296497,210.77,210.7,23.55296497]
[1731632762899,14.73681833,210.75,210.68,14.73681833]
[1731632763187,23.776884,210.81,210.66,16.0887]
[1731632763188,14.73681833,210.73,210.66,14.73681833]
[1731632763387,14.73681833,210.73,210.67,0.12549]
[1731632763689,23.776884,210.81,210.66,14.73681833]
[1731632763690,14.73681833,210.74,210.66,14.73681833]
[1731632763884,14.73681833,210.75,210.68,14.73681833]
[1731632764090,14.73681833,210.75,210.69,0.12549]
[1731632764577,14.73681833,210.74,210.68,0.12549]
[1731632764907,6.3364,210.82,210.73,14.73681833]
[1731632765195,21.07321833,210.82,210.75,14.73681833]
[1731632765777,14.73681833,210.8,210.72,14.73681833]
[1731632766099,6.3364,210.82,210.64,0.22549]
[1731632766100,14.73681833,210.77,210.7,14.73681833]
[1731632766471,14.73681833,210.76,210.7,0.12549]
[1731632766678,14.73681833,210.77,210.7,14.73681833]
[1731632766885,11.0798,210.82,210.64,0.12549]
[1731632766886,14.73681833,210.76,210.69,14.73681833]
[1731632767889,14.73681833,210.74,210.67,14.73681833]
[1731632768286,14.73681833,210.75,210.67,14.73681833]
[1731632768600,14.73681833,210.76,210.68,14.73681833]
[1731632769087,14.73681833,210.77,210.7,14.73681833]
[1731632769591,14.73681833,210.76,210.7,0.12549]
[1731632770290,6.4364,210.82,210.67,14.73681833]
[1731632770291,14.73681833,210.74,210.67,14.73681833]
[1731632770593,6.4364,210.82,210.73,14.73681833]
[1731632770899,6.4364,210.82,210.64,0.22549]
[1731632770900,6.3364,210.82,210.77,14.73681833]
[1731632771191,11.0798,210.82,210.64,0.12549]
[1731632771568,11.1798,210.82,210.64,0.12549]
[1731632772095,14.73681833,210.77,210.7,14.73681833]
[1731632772388,14.73681833,210.77,210.7,0.12549]
[1731632773396,14.73681833,210.78,210.7,14.73681833]
[1731632774079,23.776884,210.81,210.74,14.73681833]
[1731632774290,14.73681833,210.8,210.72,14.73681833]
[1731632774489,14.73681833,210.77,210.69,14.73681833]
[1731632774792,14.73681833,210.78,210.7,14.73681833]
[1731632775199,14.73681833,210.79,210.72,14.73681833]
[1731632775385,38.51370233,210.81,210.74,14.73681833]
[1731632776274,14.73681833,210.79,210.72,14.73681833]
[1731632776478,14.73681833,210.77,210.69,14.73681833]
[1731632776803,14.73681833,210.77,210.71,14.73681833]
[1731632777097,14.73681833,210.79,210.71,14.73681833]
[1731632777286,14.73681833,210.77,210.69,14.73681833]
[1731632777491,14.73681833,210.77,210.7,0.12549]
[1731632777674,14.73681833,210.77,210.71,14.73681833]
[1731632778879,4.7438,210.8,210.64,0.12549]
[1731632778880,4.7443,210.78,210.64,0.12549]
[1731632779102,14.73681833,210.75,210.66,14.73681833]
[1731632779402,14.73681833,210.77,210.68,14.73681833]
[1731632779603,14.73681833,210.79,210.72,14.73681833]
[1731632779979,6.3364,210.82,210.75,14.73681833]
[1731632780686,6.3364,210.82,210.76,0.12549]
[1731632780884,6.3364,210.82,210.64,0.12549]
[1731632780885,14.73681833,210.8,210.72,14.73681833]
[1731632781106,6.3364,210.82,210.72,14.73681833]
[1731632781107,14.73681833,210.78,210.72,14.73681833]
[1731632781280,14.73681833,210.78,210.64,0.12549]
[1731632781281,14.73681833,210.78,210.7,14.73681833]
[1731632781476,14.73681833,210.76,210.7,14.73681833]
[1731632781678,14.73681833,210.75,210.68,14.73681833]
[1731632782474,14.73681833,210.76,210.69,14.73681833]
[1731632783088,14.73681833,210.76,210.7,0.12549]
[1731632783298,14.73681833,210.76,210.64,0.12549]
[1731632783299,14.73681833,210.8,210.71,14.73681833]
[1731632783491,14.73681833,210.8,210.73,14.73681833]
[1731632784302,14.73681833,210.77,210.69,14.73681833]
[1731632784500,14.73681833,210.79,210.72,0.12549]
[1731632784999,14.73681833,210.81,210.74,0.12549]
[1731632785177,19.59347217,210.87,210.79,14.73681833]
[1731632785178,21.07341833,210.87,210.79,14.73681833]
[1731632785677,21.07341833,210.87,210.8,0.12549]
[1731632786878,14.73681833,210.84,210.78,0.12549]
[1731632788205,14.73681833,210.84,210.78,14.86230833]
[1731632788501,14.73681833,210.85,210.78,14.86230833]
[1731632791596,14.73681833,210.78,210.72,14.86230833]
[1731632792590,14.73681833,210.8,210.72,14.86230833]
[1731632793417,14.73681833,210.8,210.74,14.73681833]
[1731632793583,14.73681833,210.82,210.74,14.73681833]
[1731632793985,11.0789,210.87,210.76,14.73681833]
[1731632793986,14.73681833,210.84,210.76,14.73681833]
[1731632794615,14.73681833,210.88,210.8,14.73681833]
[1731632794828,14.73681833,210.91,210.84,14.73681833]
[1731632795329,14.73681833,210.92,210.84,14.73681833]
[1731632795888,14.73681833,210.91,210.84,14.73681833]
[1731632796099,14.73681833,210.91,210.83,14.73681833]
[1731632796308,14.73681833,210.93,210.85,14.73681833]
[1731632796632,14.73681833,210.94,210.87,14.73681833]
[1731632796817,6.0372,210.97,210.85,14.73681833]
[1731632796818,14.73681833,210.92,210.85,14.73681833]
[1731632797019,14.73681833,210.91,210.83,14.73681833]
[1731632797194,14.73681833,210.9,210.83,14.73681833]
[1731632798008,14.73681833,210.88,210.82,16.0168]
[1731632798395,14.73681833,210.91,210.83,14.73681833]
[1731632798594,14.73681833,210.9,210.83,14.73681833]
[1731632798812,23.54816412,210.89,210.82,39.56496412]
[1731632799005,23.54816412,210.88,210.82,16.0168]
[1731632799889,23.54816412,210.83,210.77,15.8652]
[1731632800098,20.1,210.94,210.77,15.8652]
[1731632800099,23.54816412,210.8,210.77,15.8652]
[1731632800313,23.54816412,210.78,210.72,15.8652]
[1731632800516,23.54816412,210.77,210.72,15.8652]
[1731632800825,23.54816412,210.79,210.72,15.8652]
[1731632801012,23.54816412,210.79,210.73,0.12549]
[1731632801708,23.54816412,210.78,210.73,0.12549]
[1731632801917,23.54816412,210.78,210.72,15.8652]
[1731632802303,23.54816412,210.81,210.74,23.54816412]
[1731632802595,23.54816412,210.8,210.73,0.12549]
[1731632803309,23.54816412,210.76,210.73,0.12549]
[1731632803507,23.54816412,210.77,210.73,0.12549]
[1731632803819,23.54816412,210.78,210.73,0.12549]
[1731632804219,6.2039,210.86,210.73,0.12549]
[1731632804220,23.54816412,210.81,210.73,23.67365412]
[1731632804407,23.54816412,210.89,210.8,23.54816412]
[1731632804608,23.54816412,210.89,210.82,23.54816412]
[1731632805022,23.54816412,210.89,210.81,23.54816412]
[1731632805907,23.54816412,210.86,210.77,23.54816412]
[1731632806111,23.54816412,210.82,210.74,23.54816412]
[1731632806306,0.1,210.9,210.74,23.54816412]
[1731632806307,23.54816412,210.81,210.74,23.54816412]
[1731632806502,23.54816412,210.78,210.72,15.8652]
[1731632806817,23.54816412,210.84,210.72,15.8652]
[1731632806818,23.54816412,210.79,210.72,15.8652]
[1731632807097,23.54816412,210.78,210.72,15.8652]
[1731632807200,23.54816412,210.77,210.72,15.8652]
[1731632807597,23.54816412,210.76,210.72,15.8652]
[1731632807799,23.54816412,210.75,210.67,39.16056412]
[1731632808010,23.54816412,210.75,210.68,23.67365412]
[1731632808214,23.54816412,210.78,210.7,23.54816412]
[1731632808826,23.54816412,210.8,210.72,23.54816412]
[1731632809025,23.54816412,210.78,210.71,23.67365412]
[1731632809229,23.54816412,210.8,210.73,23.54816412]
[1731632809412,23.54816412,210.82,210.74,23.54816412]
[1731632809606,6.0571,210.87,210.71,0.12549]
[1731632809607,23.54816412,210.83,210.75,23.54816412]
[1731632810198,23.54816412,210.83,210.76,23.54816412]
[1731632811592,23.54816412,210.87,210.79,23.54816412]
[1731632811835,23.54816412,210.89,210.81,23.54816412]
[1731632812039,23.54816412,210.89,210.82,23.54816412]
[1731632812110,23.54816412,210.9,210.82,23.54816412]
[1731632813320,30.16976412,210.92,210.84,23.54816412]
[1731632813499,23.54816412,210.92,210.84,23.54816412]
[1731632813711,23.54816412,210.91,210.83,39.34536412]
[1731632814491,23.54816412,210.92,210.84,23.54816412]
[1731632814802,23.54816412,210.91,210.84,23.54816412]
[1731632815024,23.54816412,210.92,210.85,23.54816412]
[1731632815410,23.54816412,210.94,210.86,23.54816412]
[1731632815815,23.54816412,210.93,210.86,23.54816412]
[1731632816017,6.0326,210.97,210.83,15.7972]
[1731632816018,23.54816412,210.92,210.84,23.54816412]
[1731632816217,23.54816412,210.91,210.84,23.54816412]
[1731632816415,23.54816412,210.92,210.84,23.54816412]
[1731632817226,23.54816412,210.9,210.83,39.34536412]
[1731632817426,23.54816412,210.91,210.83,39.34536412]
[1731632817647,23.54816412,210.89,210.83,15.7972]
[1731632817818,23.54816412,210.87,210.83,15.7972]
[1731632818016,23.54816412,210.86,210.78,23.54816412]
[1731632818520,23.54816412,210.86,210.79,23.54816412]
[1731632818720,23.54816412,210.88,210.8,23.54816412]
[1731632819435,23.54816412,210.9,210.82,23.54816412]
[1731632819611,23.54816412,210.87,210.79,23.54816412]
[1731632821302,23.776884,210.95,210.79,23.54816412]
[1731632821303,23.54816412,210.86,210.79,23.54816412]
[1731632821505,23.54816412,210.85,210.78,0.12549]
[1731632822133,23.54816412,210.85,210.78,23.67365412]
[1731632823041,4.7419,210.89,210.73,23.54816412]
[1731632823042,23.54816412,210.79,210.73,23.54816412]
[1731632823208,23.54816412,210.79,210.72,15.8871]
[1731632823209,23.54816412,210.78,210.72,15.8871]
[1731632823411,23.54816412,210.75,210.72,15.8871]
[1731632823723,23.54816412,210.75,210.67,38.66956412]
[1731632824235,23.54816412,210.75,210.68,23.54816412]
[1731632824531,23.54816412,210.75,210.68,0.12549]
[1731632824827,23.54816412,210.79,210.72,23.54816412]
[1731632825058,6.5659,210.86,210.73,23.54816412]
[1731632825059,23.54816412,210.8,210.73,23.54816412]
[1731632825217,23.54816412,210.85,210.77,23.54816412]
[1731632825427,23.54816412,210.87,210.8,23.54816412]
[1731632825722,4.7418,210.9,210.78,16.4769]
[1731632825923,23.54816412,210.88,210.8,23.54816412]
[1731632826131,23.54816412,210.91,210.84,23.54816412]
[1731632826732,23.54816412,210.87,210.79,23.54816412]
[1731632826921,23.54816412,210.84,210.78,16.4769]
[1731632827128,23.54816412,210.83,210.78,16.4769]
[1731632827322,23.54816412,210.82,210.78,16.4769]
[1731632827518,23.54816412,210.83,210.78,16.4769]
[1731632828430,23.54816412,210.81,210.74,43.54816412]
[1731632828637,23.54816412,210.81,210.75,0.12549]
[1731632829331,23.54816412,210.83,210.75,23.67365412]
[1731632829545,23.54816412,210.87,210.8,23.54816412]
[1731632829833,23.54816412,210.88,210.82,0.12549]
[1731632830314,23.54816412,210.9,210.83,23.54816412]
[1731632830523,23.54816412,210.9,210.82,23.54816412]
[1731632830725,23.54816412,210.89,210.81,23.54816412]
[1731632830920,23.54816412,210.9,210.82,23.54816412]
[1731632831121,23.54816412,210.89,210.81,23.54816412]
[1731632831636,23.54816412,210.9,210.82,23.54816412]
[1731632832426,23.54816412,210.89,210.81,23.54816412]
[1731632832932,23.54816412,210.87,210.79,23.54816412]
[1731632833340,23.54816412,210.85,210.77,23.54816412]
[1731632833512,23.54816412,210.83,210.75,23.67365412]
[1731632833936,23.54816412,210.83,210.75,23.54816412]
[1731632834132,23.54816412,210.81,210.73,38.89496412]
[1731632834723,23.54816412,210.78,210.73,15.3468]
[1731632835120,28.29116412,210.84,210.73,15.3468]
[1731632835121,23.54816412,210.77,210.73,15.3468]
[1731632835331,23.776884,210.83,210.73,15.3468]
[1731632835332,23.54816412,210.79,210.73,15.3468]
[1731632835548,23.54816412,210.82,210.74,23.67365412]
[1731632835733,23.54816412,210.82,210.73,15.3468]
[1731632835734,23.54816412,210.82,210.75,23.54816412]
[1731632836042,23.776884,210.83,210.75,23.54816412]
[1731632836043,23.54816412,210.83,210.76,0.12549]
[1731632836335,23.54816412,210.83,210.76,23.67365412]
[1731632836727,23.54816412,210.79,210.73,15.3468]
[1731632836924,23.54816412,210.78,210.73,15.3468]
[1731632837114,23.54816412,210.79,210.73,15.3468]
[1731632837543,23.54816412,210.8,210.73,15.3468]
[1731632837728,23.54816412,210.8,210.74,0.12549]
[1731632837922,23.54816412,210.82,210.74,23.67365412]
[1731632838342,23.54816412,210.83,210.76,23.54816412]
[1731632838519,23.54816412,210.83,210.75,23.54816412]
[1731632838747,23.54816412,210.82,210.74,23.67365412]
[1731632839061,23.54816412,210.86,210.79,20.0]
[1731632839238,6.2317,210.92,210.79,20.0]
[1731632839239,23.54816412,210.9,210.82,23.54816412]
[1731632839793,23.54816412,210.92,210.84,23.54816412]
[1731632840071,23.54816412,210.94,210.86,23.54816412]
[1731632840226,23.54816412,210.9,210.84,16.383]
[1731632840434,23.54816412,210.87,210.84,16.383]
[1731632840754,23.54816412,210.85,210.74,39.93116412]
[1731632841024,12.3846,210.91,210.74,16.383]
[1731632841025,6.2317,210.87,210.74,16.383]
[1731632841242,20.0,210.86,210.74,16.383]
[1731632841545,23.54816412,210.77,210.74,16.383]
[1731632841736,23.54816412,210.78,210.74,16.383]
[1731632841952,23.54816412,210.77,210.74,16.383]
[1731632842127,23.54816412,210.78,210.74,16.383]
[1731632843442,23.54816412,210.79,210.74,16.383]
[1731632845443,23.54816412,210.79,210.71,23.54816412]
[1731632845444,23.54816412,210.77,210.69,38.91426412]
[1731632846036,23.54816412,210.77,210.7,0.12549]
[1731632846435,23.54816412,210.77,210.69,38.91426412]
[1731632846742,23.54816412,210.75,210.69,15.3661]
[1731632847089,23.54816412,210.77,210.7,23.67365412]
[1731632847245,23.54816412,210.79,210.7,23.67365412]
[1731632847444,23.54816412,210.77,210.7,0.12549]
[1731632847645,23.54816412,210.76,210.7,0.12549]
[1731632848525,23.54816412,210.78,210.7,23.67365412]
[1731632849446,23.54816412,210.8,210.72,23.54816412]
[1731632850245,23.54816412,210.83,210.74,23.54816412]
[1731632850449,23.54816412,210.81,210.74,23.54816412]
[1731632850752,23.54816412,210.83,210.76,23.54816412]
[1731632851317,23.54816412,210.77,210.69,15.3661]
[1731632851689,23.54816412,210.74,210.69,15.3661]
[1731632851911,23.54816412,210.76,210.7,0.12549]
[1731632852101,23.54816412,210.77,210.7,0.12549]
[1731632852354,23.54816412,210.77,210.71,23.54816412]
[1731632852849,23.54816412,210.79,210.73,23.54816412]
[1731632853147,23.54816412,210.81,210.74,0.12549]
[1731632854640,23.54816412,210.79,210.72,23.54816412]
[1731632855344,23.54816412,210.81,210.73,0.12549]
[1731632855745,23.54816412,210.81,210.74,23.54816412]
[1731632855941,23.54816412,210.83,210.75,0.12549]
[1731632856132,23.54816412,210.83,210.76,23.54816412]
[1731632856335,23.54816412,210.85,210.76,23.54816412]
[1731632856648,23.54816412,210.85,210.78,23.54816412]
[1731632857030,23.54816412,210.82,210.76,23.54816412]
[1731632857362,23.54816412,210.84,210.77,0.12549]
[1731632857727,23.54816412,210.82,210.77,0.12549]
[1731632858256,23.54816412,210.84,210.77,0.12549]
[1731632861859,23.54816412,210.81,210.73,23.54816412]
[1731632862066,23.54816412,210.85,210.77,23.54816412]
[1731632862237,23.54816412,210.85,210.78,15.7146]
[1731632862587,23.54816412,210.87,210.79,23.54816412]
[1731632862880,23.54816412,210.89,210.81,23.54816412]
[1731632863190,23.54816412,210.93,210.85,23.54816412]
[1731632863363,23.54816412,210.95,210.87,23.54816412]
[1731632863559,23.54816412,210.95,210.88,15.3381]
[1731632863736,23.54816412,210.93,210.88,15.3381]
[1731632865975,23.54816412,210.93,210.89,0.12549]
[1731632869243,23.54816412,210.95,210.89,0.12549]
[1731632869447,24.00314592,210.98,210.92,23.54816412]
[1731632869660,0.4549818,210.98,210.95,23.54816412]
[1731632869960,0.4549818,210.98,210.94,23.54816412]
[1731632870350,0.4549818,210.98,210.92,23.54816412]
[1731632871471,0.4549818,210.98,210.96,0.12549]
[1731632871674,0.4549818,210.98,210.97,23.54816412]
[1731632872317,0.4549818,210.98,210.97,62.86284812]
[1731632872531,23.54816412,211.09,210.98,23.776884]
[1731632872562,23.54816412,211.09,211.02,23.54816412]
[1731632872850,23.54816412,211.1,211.02,23.54816412]
[1731632873370,23.54816412,211.1,211.03,23.54816412]
[1731632873571,4.7363,211.14,210.99,6.2578]
[1731632873572,23.54816412,211.14,211.06,23.54816412]
[1731632873739,23.54816412,211.14,210.99,6.2578]
[1731632873740,23.54816412,211.15,211.08,23.54816412]
[1731632873940,23.54816412,211.18,211.1,23.54816412]
[1731632874563,0.4549818,211.19,211.12,23.54816412]
[1731632874871,24.00314592,211.19,211.11,23.54816412]
[1731632875163,23.54816412,211.18,211.11,23.54816412]
[1731632875348,24.00314592,211.19,211.11,23.54816412]
[1731632875861,23.54816412,211.18,211.09,23.54816412]
[1731632876068,23.54816412,211.17,211.09,23.54816412]
[1731632876259,5.1901818,211.19,211.09,23.54816412]
[1731632876465,23.54816412,211.18,211.09,23.54816412]
[1731632877344,23.54816412,211.16,211.08,23.54816412]
[1731632877851,5.1901818,211.19,211.09,23.54816412]
[1731632877852,23.54816412,211.17,211.09,23.54816412]
[1731632878263,23.54816412,211.16,211.08,23.54816412]
[1731632878632,23.54816412,211.16,211.02,15.187]
[1731632878633,23.54816412,211.09,211.02,38.73516412]
[1731632878875,23.54816412,211.07,211.02,15.187]
[1731632879083,23.54816412,211.06,211.02,15.187]
[1731632879249,0.1,211.11,210.97,23.54816412]
[1731632879450,23.776884,211.09,210.96,16.4721]
[1731632880049,4.737,211.1,210.96,16.4721]
[1731632880372,23.54816412,211.09,211.01,23.54816412]
[1731632880565,23.54816412,211.1,211.03,23.54816412]
[1731632880760,12.3929818,211.19,210.96,40.02026412]
[1731632880761,23.54816412,211.12,211.04,23.54816412]
[1731632880955,6.5535,211.17,210.96,40.02026412]
[1731632880956,23.54816412,211.14,211.06,23.54816412]
[1731632881658,23.54816412,211.13,211.05,23.54816412]
[1731632881862,23.54816412,211.15,211.08,23.54816412]
[1731632882049,0.4549818,211.19,211.1,23.54816412]
[1731632882050,23.54816412,211.17,211.1,23.54816412]
[1731632882465,23.54816412,211.15,211.08,23.54816412]
[1731632882860,23.54816412,211.13,211.05,23.54816412]
[1731632883067,23.54816412,211.11,211.04,23.54816412]
[1731632883449,23.54816412,211.11,211.03,23.54816412]
[1731632883769,0.5549818,211.19,211.0,21.4232]
[1731632883770,23.54816412,211.07,211.0,21.4232]
[1731632884075,23.54816412,211.07,210.88,28.44]
[1731632884076,23.54816412,211.02,210.95,25.162096]
[1731632884250,23.54816412,210.99,210.95,18.952496]
[1731632884447,0.1,211.06,210.94,16.1751]
[1731632884752,23.54816412,210.99,210.94,16.1751]
[1731632885879,23.54816412,211.01,210.94,39.72326412]
[1731632886170,23.54816412,211.01,210.94,16.1751]
[1731632886372,23.54816412,211.0,210.94,16.1751]
[1731632887972,23.54816412,210.99,210.94,16.1751]
[1731632888376,23.54816412,211.0,210.94,16.1751]
[1731632888954,23.54816412,210.99,210.94,16.1751]
[1731632890269,23.54816412,210.99,210.83,0.1]
[1731632890270,23.54816412,210.95,210.89,16.1088]
[1731632890473,23.54816412,210.92,210.89,16.1088]
[1731632890691,23.54816412,210.9,210.84,15.1134]
[1731632892420,23.54816412,210.85,210.8,6.5768]
[1731632892624,4.7411,210.92,210.8,6.5768]
[1731632892625,23.54816412,210.87,210.8,6.5768]
[1731632892757,23.54816412,210.89,210.81,23.67365412]
[1731632893064,23.54816412,210.92,210.85,23.54816412]
[1731632894251,23.54816412,210.93,210.85,23.54816412]
[1731632894685,23.54816412,210.92,210.84,23.54816412]
[1731632895759,23.54816412,210.92,210.85,0.12549]
[1731632896374,23.54816412,210.91,210.85,0.12549]
[1731632896781,23.54816412,210.93,210.86,23.54816412]
[1731632896984,23.54816412,210.92,210.84,23.54816412]
[1731632897182,23.54816412,210.91,210.83,23.54816412]
[1731632897369,23.54816412,210.93,210.86,0.12549]
[1731632898887,23.54816412,210.95,210.89,23.54816412]
[1731632899090,23.54816412,210.99,210.91,23.54816412]
[1731632899284,23.54816412,210.95,210.88,16.5367]
[1731632899471,23.54816412,210.93,210.88,16.5367]
[1731632899891,23.54816412,210.91,210.88,16.5367]
[1731632900069,23.54816412,210.9,210.83,15.2348]
[1731632900777,23.54816412,210.94,210.86,23.54816412]
[1731632901491,4.7395,210.99,210.86,23.54816412]
[1731632901492,23.54816412,210.9,210.86,0.12549]
[1731632901699,23.54816412,210.9,210.83,15.2348]
[1731632902802,23.54816412,210.88,210.83,15.2348]
[1731632903270,23.54816412,210.91,210.84,23.54816412]
[1731632903501,23.54816412,210.91,210.83,15.2348]
[1731632904097,23.54816412,210.91,210.84,0.12549]
[1731632904540,23.54816412,210.89,210.84,0.12549]
[1731632905199,23.54816412,210.89,210.83,15.2348]
[1731632905492,23.54816412,210.85,210.83,15.2348]
[1731632905693,23.54816412,210.87,210.83,15.2348]
[1731632905904,23.54816412,210.84,210.79,0.12549]
[1731632906206,23.54816412,210.85,210.79,0.12549]
[1731632906649,23.54816412,210.82,210.78,17.17798076]
[1731632906799,23.54816412,210.8,210.78,16.4668]
[1731632906994,23.54816412,210.79,210.73,15.4792]
[1731632907200,23.54816412,210.79,210.74,0.12549]
[1731632907381,23.54816412,210.8,210.74,0.12549]
[1731632907696,23.54816412,210.8,210.73,15.4792]
[1731632908109,23.54816412,210.8,210.74,0.12549]
[1731632908486,23.54816412,210.79,210.74,0.12549]
[1731632909279,23.54816412,210.8,210.74,23.902374]
[1731632909497,23.54816412,210.83,210.76,23.54816412]
[1731632909705,4.7419,210.89,210.74,23.902374]
[1731632909706,23.54816412,210.82,210.74,47.32504812]
[1731632910204,23.54816412,210.82,210.75,0.12549]
[1731632910692,23.54816412,210.8,210.75,0.12549]
[1731632910896,4.7418,210.89,210.73,15.4792]
[1731632910897,23.54816412,210.77,210.73,15.4792]
[1731632911315,23.54816412,210.79,210.73,15.4792]
[1731632911486,23.54816412,210.8,210.73,15.4792]
[1731632912105,23.54816412,210.8,210.74,0.12549]
[1731632913303,4.7429,210.84,210.73,15.4792]
[1731632913304,23.54816412,210.78,210.73,15.4792]
[1731632913507,23.54816412,210.76,210.73,15.4792]
[1731632913692,29.65276412,210.84,210.73,15.4792]
[1731632913693,23.54816412,210.77,210.74,0.12549]
[1731632914582,23.54816412,210.78,210.74,0.12549]
[1731632916013,23.54816412,210.79,210.74,0.12549]
[1731632916310,23.54816412,210.78,210.74,0.12549]
[1731632916811,23.54816412,210.77,210.74,0.12549]
[1731632917158,23.54816412,210.78,210.74,0.12549]
[1731632920208,23.54816412,210.79,210.74,0.12549]
[1731632921703,23.54816412,210.75,210.66,0.71183999]
[1731632921902,23.54816412,210.71,210.66,0.71183999]
[1731632922112,23.54816412,210.7,210.66,0.71183999]
[1731632922492,23.54816412,210.67,210.66,0.71183999]
[1731632922825,14.75623427,210.67,210.66,0.71183999]
[1731632923114,14.75623427,210.67,210.64,0.12549]
[1731632923291,14.75623427,210.65,210.64,0.12549]
[1731632923684,19.50343427,210.65,210.64,0.12549]
[1731632924116,14.75623427,210.67,210.64,0.12549]
[1731632924327,14.75623427,210.69,210.64,0.12549]
[1731632924696,4.7458,210.71,210.64,0.12549]
[1731632925106,20.0,210.7,210.64,0.12549]
[1731632925794,23.61068329,210.65,210.64,0.12549]
[1731632926193,23.61068329,210.66,210.64,0.12549]
[1731632926389,4.7463,210.69,210.64,0.12549]
[1731632926390,23.61068329,210.67,210.64,0.12549]
[1731632927217,11.8623,210.76,210.64,0.12549]
[1731632927218,23.61068329,210.7,210.64,0.12549]
[1731632927513,23.61068329,210.71,210.64,4.87279]
[1731632928101,4.7458,210.72,210.64,4.87279]
[1731632928102,23.61068329,210.69,210.64,4.87279]
[1731632928311,23.61068329,210.65,210.64,0.12549]
[1731632932111,23.61068329,210.68,210.64,0.12549]
[1731632932331,173.4619,210.76,210.64,0.12549]
[1731632932332,23.61068329,210.7,210.65,4.7472]
[1731632932709,23.61068329,210.68,210.65,4.7472]
[1731632933224,23.61068329,210.68,210.64,0.12549]
[1731632933225,23.61068329,210.66,210.64,0.12549]
[1731632933239,23.61068329,210.65,210.58,15.13789]
[1731632933436,23.61068329,210.6,210.56,4.7491]
[1731632934227,4.7475,210.64,210.56,4.7491]
[1731632934228,23.61068329,210.59,210.56,4.7491]
[1731632934428,23.61068329,210.6,210.56,4.7491]
[1731632935338,23.61068329,210.61,210.56,4.7491]
[1731632936205,23.61068329,210.61,210.56,19.9031]
[1731632938009,23.61068329,210.59,210.56,19.9031]
[1731632939327,23.61068329,210.61,210.56,19.9031]
[1731632939909,23.61068329,210.61,210.57,0.12549]
[1731632940109,23.61068329,210.63,210.57,0.12549]
[1731632940407,23.61068329,210.64,210.57,23.73617329]
[1731632940608,23.61068329,210.66,210.59,0.12549]
[1731632941369,23.61068329,210.66,210.59,23.73617329]
[1731632941640,23.61068329,210.68,210.61,47.51305729]
[1731632941941,23.61068329,210.7,210.61,47.51305729]
[1731632942116,23.61068329,210.7,210.65,16.1397]
[1731632942727,23.61068329,210.72,210.66,0.12549]
[1731632943260,23.61068329,210.71,210.66,0.12549]
[1731632943432,23.61068329,210.71,210.65,22.2406]
[1731632943433,23.61068329,210.67,210.65,16.1397]
[1731632943727,4.7449,210.75,210.65,16.1397]
[1731632943728,23.61068329,210.66,210.65,16.1397]
[1731632943937,23.61068329,210.66,210.6,16.1397]
[1731632944109,23.61068329,210.61,210.55,16.1397]
[1731632944321,20.0,210.71,210.55,16.1397]
[1731632944510,23.61068329,210.63,210.56,23.61068329]
[1731632944723,23.61068329,210.62,210.56,0.12549]
[1731632945363,23.61068329,210.62,210.56,23.902374]
[1731632945511,23.61068329,210.67,210.6,23.776884]
[1731632945832,23.61068329,210.65,210.58,0.12549]
[1731632946035,23.61068329,210.65,210.58,23.902374]
[1731632946432,23.61068329,210.67,210.6,23.902374]
[1731632947137,23.61068329,210.67,210.62,0.12549]
[1731632947342,23.61068329,210.67,210.62,23.902374]
[1731632948337,23.61068329,210.65,210.6,23.776884]
[1731632948527,23.61068329,210.65,210.58,23.902374]
[1731632949539,23.61068329,210.65,210.58,28.651074]
[1731632950333,23.61068329,210.67,210.61,23.776884]
[1731632950839,23.61068329,210.65,210.61,23.776884]
[1731632951025,23.61068329,210.65,210.6,4.87379]
[1731632951391,23.61068329,210.61,210.55,16.1397]
[1731632951581,23.61068329,210.58,210.55,16.1397]
[1731632952041,23.61068329,210.56,210.55,16.1397]
[1731632952570,23.61068329,210.56,210.52,4.75]
[1731632952838,6.1361,210.67,210.5,15.0783]